fUST/lending_fUST_20240922
["ID","MTS","AMOUNT","RATE_DAILY","PERIOD"]
[338884069,1727005771025,-157.75670972,0.00020292,2]
[338884070,1727005771045,-157.75670972,0.00020414,2]
[338884071,1727005771067,-157.75670972,0.00020535,2]
[338884072,1727005771088,-2679.64412284,0.00020559,2]
[338884073,1727005771109,-157.75670972,0.00020657,2]
[338884074,1727005771129,-150.0,0.00020659,2]
[338884075,1727005771154,-157.75670972,0.00020778,2]
[338884076,1727005771176,-157.75670972,0.000209,2]
[338884077,1727005771199,-593.45123994,0.00021,30]
[338884078,1727005771223,-500.0,0.00021,30]
[338884079,1727005771246,-500.0,0.00021,30]
[338884080,1727005771269,-500.0,0.00021,30]
[338884081,1727005771290,-5000.0,0.00021,3]
[338884082,1727005771313,-3000.0,0.00021,2]
[338884083,1727005771336,-3000.0,0.0002101,2]
[338884084,1727005771358,-3000.0,0.0002102,2]
[338884085,1727005771382,-420.0,0.00021181,2]
[338884086,1727005771403,-420.0,0.00021385,2]
[338884087,1727005771425,-164.915757,0.00021448,2]
[338884088,1727005771450,-164.915757,0.00021455,2]
[338884089,1727005771472,-164.915757,0.00021462,2]
[338884090,1727005771494,-164.915757,0.0002147,2]
[338884091,1727005771519,-164.915757,0.00021477,2]
[338884092,1727005771540,-164.915757,0.00021484,2]
[338884093,1727005771561,-164.915757,0.00021491,2]
[338884094,1727005771582,-164.915757,0.00021498,2]
[338884095,1727005771603,-164.915757,0.00021505,2]
[338884096,1727005771627,-164.915757,0.00021512,2]
[338884097,1727005771650,-164.915757,0.0002152,2]
[338884098,1727005771672,-164.915757,0.00021527,2]
[338884099,1727005771695,-164.915757,0.00021534,2]
[338884100,1727005771720,-164.915757,0.00021541,2]
[338884101,1727005771740,-164.915757,0.00021548,2]
[338884102,1727005771763,-164.915757,0.00021555,2]
[338884103,1727005771784,-166.666666,0.00021918,2]
[338884104,1727005771805,-166.666666,0.00022431,2]
[338884149,1727005838683,-154.7424223,0.000229,4]
[338884151,1727005838693,-166.666666,0.00022944,2]
[338884152,1727005838702,-257.3055988,0.00023,2]
[338884154,1727005838712,-490.20744087,0.0002338,2]
[338884156,1727005838721,-166.666666,0.00023456,2]
[338884158,1727005838731,-1826.86984114,0.00023713,2]
[338884161,1727005838749,-1292.95750264,0.00023713,2]
[338884164,1727005838766,-1699.20089711,0.00023713,2]
[338884165,1727005838776,-184.86696316,0.00023759,2]
[338884167,1727005838786,-459.01464777,0.000238,2]
[338884169,1727005838797,-6.95432226,0.00023848,2]
[338884280,1727005840514,-293.04567774,0.00023848,2]
[338884281,1727005840524,-300.0,0.00023848,2]
[338884282,1727005840534,-59956.698385,0.00023849,3]
[338884283,1727005840544,-69213.2960709,0.00023849,3]
[338884284,1727005840554,-152.013798,0.00023869,7]
[338884285,1727005840565,-211.77505,0.00023869,7]
[338884286,1727005840574,-151.0,0.00023869,7]
[338884287,1727005840583,-211.77505,0.00023869,7]
[338884288,1727005840594,-151.0,0.00023869,7]
[338884289,1727005840604,-151.0,0.00023869,7]
[338884290,1727005840614,-151.0,0.00023869,7]
[338884291,1727005840624,-151.0,0.00023869,7]
[338884292,1727005840635,-151.0,0.00023869,7]
[338884293,1727005840645,-169.463165,0.00023869,7]
[338884294,1727005840655,-169.463165,0.00023869,7]
[338884295,1727005840664,-151.0,0.00023869,7]
[338884296,1727005840673,-151.0,0.0002387,7]
[338884297,1727005840683,-151.0,0.0002387,7]
[338884298,1727005840694,-152.28666,0.0002387,7]
[338884299,1727005840705,-151.0,0.0002387,7]
[338884300,1727005840715,-151.0,0.0002387,7]
[338884301,1727005840726,-151.0,0.0002387,7]
[338884302,1727005840735,-152.105511,0.0002387,7]
[338884303,1727005840745,-152.745032,0.0002387,7]
[338884304,1727005840764,-151.0,0.0002387,7]
[338884305,1727005840778,-151.0,0.0002387,7]
[338884306,1727005840794,-151.0,0.0002387,7]
[338884307,1727005840808,-250.251756,0.0002387,7]
[338884308,1727005840824,-250.251756,0.0002387,7]
[338884309,1727005840838,-500.0,0.00023873,2]
[338884310,1727005840849,-500.0,0.00023873,2]
[338884311,1727005840861,-500.0,0.00023873,2]
[338884312,1727005840873,-219.42903315,0.00023888,2]
[338884313,1727005840886,-178.03442773,0.00023888,2]
[338884314,1727005840899,-500.0,0.00023889,2]
[338884315,1727005840911,-205.45752426,0.00023889,2]
[338884316,1727005840924,-500.0,0.00023889,2]
[338884317,1727005840935,-500.0,0.00023889,2]
[338884318,1727005840947,-500.0,0.00023889,2]
[338884319,1727005840959,-500.0,0.00023889,2]
[338884320,1727005840971,-500.0,0.00023889,2]
[338884321,1727005840987,-500.0,0.00023889,2]
[338884322,1727005841000,-500.0,0.00023889,2]
[338884323,1727005841013,-382.4981439,0.00023889,2]
[338884324,1727005841025,-500.0,0.00023889,2]
[338884325,1727005841036,-151.0,0.00023889,7]
[338884326,1727005841047,-151.0,0.00023889,7]
[338884327,1727005841061,-151.0,0.00023889,7]
[338884328,1727005841071,-287.287461,0.00023889,7]
[338884329,1727005841083,-137119.82108927,0.00023889,15]
[338884330,1727005841100,-72174.36847814,0.00023889,15]
[338884331,1727005841114,-2073.27057631,0.00023889,15]
[338884341,1727005843599,-1827.28065253,0.00023889,15]
[338884342,1727005843613,-350.00768034,0.00023889,15]
[338884344,1727005843651,-3089.76282734,0.00023889,15]
[338884351,1727005846529,-151.0,0.00023889,7]
[338884352,1727005846540,-1565.28798229,0.00023889,15]
[338884375,1727006336405,298.4,0.0001415,2]
[338884388,1727006830159,-300.0,0.00015999,2]
[338884389,1727006830183,-300.0,0.00015999,2]
[338884390,1727006830207,-1000.0,0.00016,2]
[338884391,1727006830232,-1000.0,0.00016,2]
[338884392,1727006830252,-373.32284508,0.00016,2]
[338884395,1727006958127,-300.0,0.00015999,2]
[338884396,1727006958152,-300.0,0.00015999,2]
[338884397,1727006958174,-626.67715492,0.00016,2]
[338884398,1727006958195,-270.0,0.00016,2]
[338884399,1727006958217,-1000.0,0.00016,2]
[338884400,1727006958239,-1000.0,0.00016,2]
[338884401,1727006958261,-1000.0,0.00016,2]
[338884402,1727006958283,-1000.0,0.00016,2]
[338884403,1727006958304,-1000.0,0.00016,2]
[338884404,1727006958326,-484.81138708,0.00016,2]
[338884405,1727006961098,-515.18861292,0.00016,2]
[338884406,1727006961120,-420.0,0.00017492,2]
[338884407,1727006961141,-420.0,0.00017599,2]
[338884408,1727006961162,-587.0,0.00019125,2]
[338884409,1727006961183,-587.0,0.00019359,2]
[338884410,1727006961205,-13978.27436595,0.00019763,2]
[338884411,1727006973107,-154.7424223,0.00015899,2]
[338884412,1727006973131,-10921.72563405,0.00019763,2]
[338884413,1727006973154,-185.465549,0.00020224,2]
[338884430,1727007032594,-150.0,0.00021,2]
[338884431,1727007032604,-161.159439,0.00021882,2]
[338884432,1727007032614,-166.666666,0.00021918,2]
[338884433,1727007032627,-201.3326093,0.00022005,2]
[338884434,1727007032637,-166.666666,0.00022431,2]
[338884435,1727007032646,-3161.21900837,0.00022567,2]
[338884437,1727007032658,-166.666666,0.00022944,2]
[338884439,1727007032667,-532.409,0.00023113,2]
[338884441,1727007032678,-191.31118961,0.00023113,2]
[338884443,1727007032688,-166.666666,0.00023456,2]
[338884445,1727007032698,-300.0,0.00023578,2]
[338884446,1727007032707,-223.0,0.00023578,2]
[338884447,1727007032717,-4819.02824089,0.00023579,2]
[338884448,1727007032727,-182.29749244,0.00023789,2]
[338884449,1727007032736,-150.88579752,0.00023799,7]
[338884450,1727007032749,-151.38,0.00023799,7]
[338884451,1727007032759,-151.07329752,0.00023799,7]
[338884452,1727007032776,-151.07329752,0.00023799,7]
[338884453,1727007032791,-151.07329752,0.00023799,7]
[338884454,1727007032801,-151.07329752,0.00023799,7]
[338884455,1727007032812,-151.07329752,0.00023799,7]
[338884456,1727007032822,-522.04103649,0.000238,2]
[338884457,1727007032831,-537.17947911,0.00023873,2]
[338884458,1727007032843,-500.0,0.00023873,2]
[338884459,1727007032856,-500.0,0.00023873,2]
[338884460,1727007032866,-1011.31111717,0.0002388,7]
[338884461,1727007032876,-150.01,0.00023888,2]
[338884462,1727007032886,-1423.53127286,0.00023888,2]
[338884463,1727007032896,-205.45752426,0.00023888,2]
[338884464,1727007032906,-500.0,0.00023888,2]
[338884465,1727007032916,-500.0,0.00023888,2]
[338884466,1727007032925,-500.0,0.00023888,2]
[338884467,1727007032935,-500.0,0.00023888,2]
[338884468,1727007032945,-500.0,0.00023888,2]
[338884469,1727007032954,-500.0,0.00023888,2]
[338884470,1727007032964,-353.40043578,0.00023888,2]
[338884471,1727007032974,-500.0,0.00023888,2]
[338884472,1727007032983,-500.0,0.00023888,2]
[338884473,1727007032993,-219.42903315,0.00023888,2]
[338884474,1727007033003,-178.03442773,0.00023888,2]
[338884475,1727007033013,-181.39421725,0.00023888,2]
[338884476,1727007033023,-300.0,0.00023888,2]
[338884477,1727007033032,-63978.37778902,0.00023889,15]
[338884478,1727007033108,-6708.84701711,0.00023889,15]
[338884479,1727007033120,-1618.0906512,0.00023889,15]
[338884579,1727007039578,-1186.27606072,0.00023888,2]
[338884581,1727007039588,-18419.23813759,0.00023889,15]
[338884583,1727007039604,-4598.2762932,0.00023889,15]
[338884640,1727007040677,-391.781896,0.00023889,15]
[338884641,1727007040689,-5270.01570441,0.00023889,15]
[338884642,1727007040701,-84722.97006636,0.00023889,15]
[338884643,1727007040711,-54826.81055735,0.00023889,15]
[338884644,1727007040721,-9432.8779986,0.00023889,3]
[338884645,1727007040732,-12690.0,0.00023889,3]
[338884653,1727007043855,-2344.68860752,0.00023789,2]
[338884654,1727007043865,-1808.77320239,0.00023889,3]
[338884655,1727007043877,-6657.93708232,0.00023889,3]
[338884658,1727007046645,-520.4902834,0.00023889,3]
[338884659,1727007046697,-683.93107189,0.00023889,3]
[338884660,1727007046710,-355.66427784,0.00023889,3]
[338884710,1727007833691,714.0,0.00021,60]
[338884731,1727008019166,-335.85433762,0.00021,2]
[338884732,1727008047108,-2514.14566238,0.00021,2]
[338884733,1727008047130,-300.0,0.00021425,2]
[338884734,1727008047151,-300.0,0.00021425,2]
[338884735,1727008047174,-3147.85407636,0.00021426,2]
[338884746,1727008158144,-1800.48042659,0.0002,2]
[338884747,1727008158167,-153.77395515,0.00021325,2]
[338884748,1727008158193,-300.0,0.00021425,2]
[338884749,1727008158217,-300.0,0.00021425,2]
[338884750,1727008158239,-21752.14592364,0.00021426,2]
[338884778,1727008231759,-153.77395504,0.00021545,2]
[338884780,1727008231770,-223.4176283,0.00021684,2]
[338884782,1727008231779,-153.77395504,0.00021766,2]
[338884784,1727008231789,-163.124425,0.00021873,2]
[338884786,1727008231799,-166.666666,0.00021918,2]
[338884788,1727008231808,-163.124425,0.0002194,2]
[338884790,1727008231817,-153.77395504,0.00021986,2]
[338884792,1727008231826,-163.124425,0.00022007,2]
[338884794,1727008231835,-257.518134,0.00022055,2]
[338884796,1727008231845,-233.33635743,0.00022062,2]
[338884798,1727008231854,-150.0,0.00022062,2]
[338884800,1727008231863,-163.124425,0.00022074,2]
[338884802,1727008231872,-163.124425,0.00022141,2]
[338884804,1727008231883,-153.77395504,0.00022206,2]
[338884806,1727008231892,-163.124425,0.00022208,2]
[338884808,1727008231902,-163.124425,0.00022275,2]
[338884810,1727008231911,-163.124425,0.00022342,2]
[338884812,1727008231920,-163.124425,0.00022409,2]
[338884814,1727008231930,-153.77395504,0.00022427,2]
[338884816,1727008231940,-166.666666,0.00022431,2]
[338884818,1727008231949,-163.124425,0.00022476,2]
[338884820,1727008231958,-163.124425,0.00022543,2]
[338884822,1727008231968,-182.0,0.00022559,2]
[338884824,1727008231978,-300.0,0.0002261,2]
[338884826,1727008231987,-300.0,0.0002261,2]
[338884828,1727008231996,-163.124425,0.0002261,2]
[338884830,1727008232005,-153.77395504,0.00022647,2]
[338884832,1727008232014,-163.124425,0.00022677,2]
[338884834,1727008232024,-163.124425,0.00022744,2]
[338884836,1727008232033,-163.124425,0.00022811,2]
[338884838,1727008232043,-153.77395504,0.00022868,2]
[338884840,1727008232052,-110.14785012,0.00022878,2]
[338884842,1727008232065,-52.97657488,0.00022878,2]
[338884844,1727008232074,-166.666666,0.00022944,2]
[338884846,1727008232083,-163.124425,0.00022945,2]
[338884848,1727008232092,-17.15223613,0.00023,2]
[338884851,1727008232104,-340.17268743,0.00023,2]
[338884853,1727008232116,-92.67507644,0.00023,2]
[338884855,1727008232126,-779.0,0.00023,2]
[338884857,1727008232138,-163.124425,0.00023012,2]
[338884859,1727008232147,-153.77395504,0.00023088,2]
[338884861,1727008232157,-153.77395504,0.00023308,2]
[338884863,1727008232167,-166.666666,0.00023456,2]
[338884865,1727008232176,-153.77395504,0.00023529,2]
[338884867,1727008232186,-195.18944565,0.00023556,60]
[338884869,1727008232195,-417.5847252,0.00023644,2]
[338884871,1727008232206,-394.94073409,0.00023659,2]
[338885006,1727008237976,-1656.66179749,0.00023659,2]
[338885007,1727008237985,-153.77395504,0.00023749,2]
[338885008,1727008237995,-469.83693285,0.00023759,2]
[338885009,1727008238005,-1000.0,0.00023759,2]
[338885010,1727008238014,-151.07523001,0.000238,7]
[338885011,1727008238024,-151.07523001,0.000238,7]
[338885012,1727008238033,-500.0,0.00023848,2]
[338885013,1727008238042,-500.0,0.00023848,2]
[338885014,1727008238051,-500.0,0.00023848,2]
[338885015,1727008238061,-500.0,0.00023848,2]
[338885016,1727008238070,-500.0,0.00023848,2]
[338885017,1727008238080,-500.0,0.00023848,2]
[338885018,1727008238089,-457.38030504,0.00023848,2]
[338885019,1727008238099,-500.0,0.00023848,2]
[338885020,1727008238108,-1059.53022956,0.00023848,15]
[338885045,1727008239907,-62069.85765342,0.00023848,15]
[338885046,1727008239920,-72085.89592765,0.00023848,15]
[338885047,1727008239929,-54826.81055735,0.00023848,15]
[338885048,1727008239939,-250.33528277,0.00023849,7]
[338885049,1727008239949,-151582.65698818,0.00023849,3]
[338885050,1727008239964,-5790.19823824,0.00023849,3]
[338885056,1727008242912,-5295.36,0.00023849,3]
[338885057,1727008242925,-791.2784889,0.00023849,3]
[338885060,1727008243035,-37.31714862,0.00023849,3]
[338885064,1727008245757,-3741.205517,0.00023849,3]
[338885065,1727008249098,457.03033191,0.00021445,2]
[338885077,1727008912602,650.04,0.00025,120]
[338885092,1727009243098,-300.0,0.00015999,2]
[338885093,1727009243121,-158.0,0.00015999,2]
[338885094,1727009243141,-1143.0,0.00016,2]
[338885095,1727009243162,-1000.0,0.00016,2]
[338885096,1727009243182,-1000.0,0.00016,2]
[338885097,1727009243203,-770.34849427,0.00016,2]
[338885099,1727009350264,-300.0,0.00015999,2]
[338885100,1727009350286,-300.0,0.00015999,2]
[338885101,1727009350307,-229.65150573,0.00016,2]
[338885102,1727009350328,-1000.0,0.00016,2]
[338885103,1727009350349,-1000.0,0.00016,2]
[338885104,1727009350370,-1000.0,0.00016,2]
[338885105,1727009350390,-1000.0,0.00016,2]
[338885106,1727009350414,-1000.0,0.00016,2]
[338885107,1727009350435,-817.0,0.00016,2]
[338885108,1727009350456,-244.642227,0.00019487,2]
[338885109,1727009350477,-607.7823084,0.000205,2]
[338885110,1727009350498,-24900.0,0.00020627,2]
[338885111,1727009350519,-1795.15221515,0.00020788,2]
[338885112,1727009350542,-183.173765,0.00020888,2]
[338885113,1727009350563,-5572.348469,0.00021,2]
[338885114,1727009350584,-1000.0,0.00021445,2]
[338885115,1727009350604,-500.0,0.00021445,2]
[338885146,1727009431964,-166.666666,0.00021918,2]
[338885149,1727009431974,-310.80081531,0.00022374,2]
[338885238,1727009439954,-689.19918469,0.00022374,2]
[338885239,1727009439964,-166.666666,0.00022431,2]
[338885241,1727009439973,-500.0,0.00022738,2]
[338885242,1727009439982,-166.666666,0.00022944,2]
[338885243,1727009439992,-1795.15221509,0.00022947,2]
[338885244,1727009440001,-823.5,0.0002298,3]
[338885245,1727009440010,-153.0,0.00022981,2]
[338885246,1727009440019,-66414.295792,0.0002299,3]
[338885247,1727009440029,-72778.88,0.00023,5]
[338885248,1727009440038,-1000.00000101,0.00023087,2]
[338885249,1727009440047,-910.46409402,0.00023206,2]
[338885250,1727009440057,-166.666666,0.00023456,2]
[338885251,1727009440066,-348.89066024,0.00023629,2]
[338885252,1727009440075,-460.40698395,0.0002363,2]
[338885253,1727009440084,-500.0,0.00023639,2]
[338885254,1727009440094,-500.0,0.00023639,2]
[338885255,1727009440103,-500.0,0.00023639,2]
[338885256,1727009440113,-442.07886459,0.00023639,2]
[338885257,1727009440122,-500.0,0.00023639,2]
[338885258,1727009440131,-500.0,0.00023639,2]
[338885259,1727009440140,-277.37516854,0.00023639,2]
[338885260,1727009440150,-1000.0,0.00023639,2]
[338885261,1727009440160,-66414.295792,0.0002364,3]
[338885262,1727009440169,-22911.60559249,0.00023649,3]
[338885263,1727009440178,-500.0,0.0002365,3]
[338885264,1727009440188,-500.0,0.0002365,3]
[338885265,1727009440197,-500.0,0.0002365,3]
[338885266,1727009440207,-500.0,0.0002365,3]
[338885267,1727009440216,-500.0,0.0002365,3]
[338885268,1727009440226,-500.0,0.0002365,3]
[338885269,1727009440235,-500.0,0.0002365,3]
[338885270,1727009440244,-500.0,0.0002365,3]
[338885271,1727009440253,-500.0,0.0002365,3]
[338885272,1727009440263,-500.0,0.0002365,3]
[338885273,1727009440274,-208.9234097,0.0002365,2]
[338885274,1727009440284,-208.9234097,0.0002365,2]
[338885275,1727009440293,-208.9234097,0.0002365,2]
[338885276,1727009440302,-208.9234097,0.0002365,2]
[338885277,1727009440312,-208.9234097,0.0002365,2]
[338885278,1727009440321,-207.8197055,0.0002365,2]
[338885279,1727009440331,-348.89066024,0.00023661,2]
[338885280,1727009440340,-348.89066024,0.00023693,2]
[338885281,1727009440350,-14818.23895955,0.00023717,2]
[338885282,1727009440359,-500.0,0.00023718,2]
[338885283,1727009440368,-270.16621353,0.00023718,2]
[338885284,1727009440378,-500.0,0.00023718,2]
[338885285,1727009440387,-500.0,0.00023718,2]
[338885286,1727009440397,-500.0,0.00023718,2]
[338885287,1727009440406,-500.0,0.00023718,2]
[338885288,1727009440415,-151.0,0.00023719,7]
[338885289,1727009440425,-14136.93116177,0.00023719,15]
[338885296,1727009442983,-151.0,0.00023719,7]
[338885297,1727009442994,-151.0,0.00023719,7]
[338885298,1727009443003,-2527.58,0.00023719,15]
[338885313,1727009822289,180.0,0.00025,120]
[338885315,1727009932605,10000.0,0.00025,120]
[338885316,1727009940958,10000.0,0.00025,120]
[338885324,1727010437134,-300.0,0.00019999,2]
[338885325,1727010437158,-300.0,0.00019999,2]
[338885326,1727010437190,-2588.85799079,0.0002,2]
[338885327,1727010447226,-25151.35740921,0.0002,2]
[338885328,1727010447248,-4142.98,0.0002,2]
[338885329,1727010447269,-24900.0,0.00020372,2]
[338885330,1727010447290,-261.1530539,0.000209,2]
[338885331,1727010447312,-3000.0,0.00021,2]
[338885332,1727010447336,-4119.578957,0.0002101,2]
[338885333,1727010447357,-164.915757,0.00021304,2]
[338885334,1727010447378,-164.915757,0.00021311,2]
[338885335,1727010447399,-164.915757,0.00021319,2]
[338885336,1727010447419,-164.915757,0.00021326,2]
[338885337,1727010447441,-164.915757,0.00021333,2]
[338885338,1727010447462,-164.915757,0.0002134,2]
[338885339,1727010447483,-164.915757,0.00021347,2]
[338885340,1727010447503,-164.915757,0.00021354,2]
[338885341,1727010447528,-164.915757,0.00021361,2]
[338885342,1727010447553,-164.915757,0.00021368,2]
[338885343,1727010447576,-164.915757,0.00021375,2]
[338885344,1727010447600,-164.915757,0.00021382,2]
[338885345,1727010447621,-164.915757,0.00021389,2]
[338885346,1727010447648,-164.915757,0.00021397,2]
[338885347,1727010447671,-164.915757,0.00021404,2]
[338885348,1727010447693,-164.915757,0.00021411,2]
[338885349,1727010447714,-156.30866891,0.00021491,2]
[338885435,1727010638490,-166.666666,0.00021918,2]
[338885438,1727010638500,-300.0,0.00021999,2]
[338885440,1727010638510,-300.0,0.00021999,2]
[338885441,1727010638520,-31842.2694,0.00022,2]
[338885443,1727010638528,-5000.0,0.00022,3]
[338885445,1727010638538,-156.0,0.00022,2]
[338885448,1727010638547,-348.89066024,0.00022079,2]
[338885449,1727010638557,-823.5,0.0002216,3]
[338885451,1727010638566,-66414.295792,0.0002217,3]
[338885454,1727010638576,-500.0,0.00022171,2]
[338885456,1727010638585,-500.0,0.00022171,2]
[338885457,1727010638594,-500.0,0.00022171,2]
[338885459,1727010638603,-500.0,0.00022171,2]
[338885461,1727010638613,-500.0,0.00022171,2]
[338885463,1727010638622,-500.0,0.00022171,2]
[338885466,1727010638631,-500.0,0.00022171,2]
[338885468,1727010638642,-500.0,0.00022171,2]
[338885470,1727010638651,-500.0,0.00022171,2]
[338885472,1727010638661,-500.0,0.00022171,2]
[338885474,1727010638670,-500.0,0.00022171,2]
[338885476,1727010638679,-500.0,0.00022171,2]
[338885478,1727010638688,-500.0,0.00022171,2]
[338885480,1727010638698,-500.0,0.00022171,2]
[338885482,1727010638710,-500.0,0.00022171,2]
[338885484,1727010638719,-500.0,0.00022171,2]
[338885486,1727010638729,-500.0,0.00022171,2]
[338885488,1727010638739,-500.0,0.00022171,2]
[338885490,1727010638749,-500.0,0.00022171,2]
[338885492,1727010638758,-500.0,0.00022171,2]
[338885494,1727010638767,-415.26979822,0.00022171,2]
[338885496,1727010638779,-500.0,0.00022171,2]
[338885498,1727010638790,-305.03176134,0.00022171,2]
[338885500,1727010638799,-500.0,0.00022171,2]
[338885502,1727010638809,-500.0,0.00022171,2]
[338885504,1727010638819,-224.602667,0.00022171,2]
[338885506,1727010638829,-500.0,0.00022171,2]
[338885508,1727010638839,-500.0,0.00022171,2]
[338885510,1727010638849,-500.0,0.00022171,2]
[338885512,1727010638858,-500.0,0.00022171,2]
[338885514,1727010638868,-400.0,0.00022171,2]
[338885515,1727010638879,-500.0,0.00022171,2]
[338885516,1727010638889,-500.0,0.00022171,2]
[338885517,1727010638899,-500.0,0.00022171,2]
[338885518,1727010638908,-500.0,0.00022171,2]
[338885519,1727010638918,-500.0,0.00022171,2]
[338885520,1727010638927,-500.0,0.00022171,2]
[338885521,1727010638938,-500.0,0.00022171,2]
[338885522,1727010638948,-322.64778708,0.00022171,2]
[338885523,1727010638961,-500.0,0.00022171,2]
[338885524,1727010638970,-500.0,0.00022171,2]
[338885525,1727010638980,-500.0,0.00022171,2]
[338885526,1727010638989,-500.0,0.00022171,2]
[338885527,1727010638997,-500.0,0.00022171,2]
[338885528,1727010639007,-500.0,0.00022171,2]
[338885529,1727010639016,-500.0,0.00022171,2]
[338885530,1727010639025,-500.0,0.00022171,2]
[338885531,1727010639034,-500.0,0.00022171,2]
[338885532,1727010639044,-500.0,0.00022171,2]
[338885533,1727010639054,-500.0,0.00022171,2]
[338885534,1727010639063,-500.0,0.00022171,2]
[338885535,1727010639072,-500.0,0.00022171,2]
[338885536,1727010639082,-500.0,0.00022171,2]
[338885537,1727010639092,-500.0,0.00022171,2]
[338885538,1727010639102,-500.0,0.00022171,2]
[338885539,1727010639112,-500.0,0.00022171,2]
[338885540,1727010639122,-500.0,0.00022171,2]
[338885541,1727010639132,-500.0,0.00022171,2]
[338885542,1727010639143,-500.0,0.00022171,2]
[338885543,1727010639153,-500.0,0.00022171,2]
[338885544,1727010639163,-500.0,0.00022171,2]
[338885545,1727010639172,-500.0,0.00022171,2]
[338885546,1727010639181,-500.0,0.00022171,2]
[338885547,1727010639191,-500.0,0.00022171,2]
[338885548,1727010639204,-500.0,0.00022171,2]
[338885549,1727010639215,-500.0,0.00022171,2]
[338885550,1727010639224,-500.0,0.00022171,2]
[338885551,1727010639233,-490.61273171,0.00022171,2]
[338885552,1727010639243,-500.0,0.00022171,2]
[338885553,1727010639252,-500.0,0.00022171,2]
[338885554,1727010639262,-500.0,0.00022171,2]
[338885555,1727010639271,-500.0,0.00022171,2]
[338885556,1727010639281,-500.0,0.00022171,2]
[338885557,1727010639290,-500.0,0.00022171,2]
[338885558,1727010639299,-500.0,0.00022171,2]
[338885559,1727010639308,-500.0,0.00022171,2]
[338885560,1727010639317,-500.0,0.00022171,2]
[338885561,1727010639326,-500.0,0.00022171,2]
[338885562,1727010639335,-500.0,0.00022171,2]
[338885563,1727010639344,-500.0,0.00022171,2]
[338885564,1727010639353,-500.0,0.00022171,2]
[338885565,1727010639362,-500.0,0.00022171,2]
[338885566,1727010639371,-500.0,0.00022171,2]
[338885567,1727010639380,-500.0,0.00022171,2]
[338885568,1727010639389,-500.0,0.00022171,2]
[338885569,1727010639398,-500.0,0.00022171,2]
[338885570,1727010639408,-500.0,0.00022171,2]
[338885571,1727010639419,-500.0,0.00022171,2]
[338885572,1727010639428,-500.0,0.00022171,2]
[338885573,1727010639437,-500.0,0.00022171,2]
[338885574,1727010639446,-500.0,0.00022171,2]
[338885575,1727010639459,-500.0,0.00022171,2]
[338885576,1727010639470,-500.0,0.00022171,2]
[338885577,1727010639479,-500.0,0.00022171,2]
[338885578,1727010639489,-500.0,0.00022171,2]
[338885579,1727010639499,-500.0,0.00022171,2]
[338885580,1727010639509,-500.0,0.00022171,2]
[338885581,1727010639518,-500.0,0.00022171,2]
[338885582,1727010639527,-500.0,0.00022171,2]
[338885583,1727010639536,-500.0,0.00022171,2]
[338885584,1727010639546,-500.0,0.00022171,2]
[338885585,1727010639556,-500.0,0.00022171,2]
[338885586,1727010639567,-500.0,0.00022171,2]
[338885587,1727010639576,-500.0,0.00022171,2]
[338885588,1727010639586,-442.07886459,0.00022171,2]
[338885589,1727010639595,-500.0,0.00022171,2]
[338885590,1727010639606,-500.0,0.00022171,2]
[338885591,1727010639616,-500.0,0.00022171,2]
[338885592,1727010639626,-500.0,0.00022171,2]